[Event "79th LOTTO Polish-ch 2022"]
[Site "Kruszwica"]
[Date "2022.05.12"]
[Round "2.2"]
[White "Bartel, Mateusz"]
[Black "Moranda, Wojciech"]
[Result "1/2-1/2"]
[ECO "B13"]
[WhiteElo "2619"]
[BlackElo "2630"]
[Annotator "TA"]
[PlyCount "106"]
[EventDate "2022.05.10"]
[EventType "k.o."]
[EventCountry "POL"]
[SourceTitle "playchess.com"]
[Source "ChessBase"]
[SourceQuality "1"]
[TimeControl "40/5400+30:1800+30"]

{[%evp 18,106,14,5,7,16,18,15,4,14,18,-1,0,-14,23,-9,-10,-11,10,21,21,18,20,20,18,27,32,42,32,17,42,0,0,0,0,0,0,0,0,0,0,0,0,0,0,0,58,35,56,39,32,57,44,0,0,0,0,0,17,0,0,0,0,0,0,0,0,0,0,0,0,0,0,-46,0,0,0,0,0,0,0,-40,0,0,0,0,0,0,0,0,0]} 1. e4 {[%emt 0:00:03]} c6 {[%emt 0:00:06]} 2. d4 {[%emt 0:00:25]} d5 {[%emt 0:00:07]} 3. exd5 {[%emt 0:00:06]} cxd5 {[%emt 0:00:07]} 4. Nf3 {[%emt 0:00:04]} Nc6 {[%emt 0:00:31]} 5. c4 {[%emt 0:00:05]} Nf6 {[%emt 0:00:51]} 6. h3 {[%emt 0:00:04]} dxc4 {[%emt 0:06:31]} 7. Bxc4 {[%emt 0:00:03]} e6 {[%emt 0:00:30]} 8. O-O {[%emt 0:00:03]} Be7 {[%emt 0:00:23]} 9. Nc3 {[%emt 0:00:06]} O-O {[%emt 0:00:22]} 10. a3 {[%emt 0:00:05]} b6 {[%emt 0:08:07] D26: Queen's Gambit Accepted: 4 e3 e6 5 Bxc5 c5 sidelines.} 11. Re1 {[%emt 0:03:58]} Bb7 {[%emt 0:01:00]} 12. Ba2 {[%emt 0:00:02]} Rc8 {[%emt 0:06:10]} 13. Bf4 {[%emt 0:00:06]} Na5 {[%emt 0:06:53][%cal Oe7a3] [#]} 14. Qd3 $146 {[%emt 0:11:23]} ({Predecessor:} 14. Rc1 Nc4 15. Qe2 Nh5 16. Bh2 Nxb2 17. Qxb2 Bxf3 18. gxf3 Qxd4 19. Re4 {½-½ (54) Ollek,K (2212)-Philippeit,B (2328) ICCF email 2015}) 14... Nd5 {[%emt 0:10:14]} 15. Bb1 {[%emt 0:03:11][%csl Gb1][%cal Rd3h7] [#]} f5 {[%emt 0:11:12]} (15... g6 $5 {[%cal Rd5f4]} 16. Bh6 Re8 $11) 16. Ne2 {[%emt 0:00:38]} Nc4 {[%emt 0:04:00]} 17. Ba2 {[%emt 0:03:37]} b5 {[%emt 0:04:45]} 18. Ne5 {[%emt 0:03:35][%cal Re5c4]} Bd6 {[%emt 0:05:30]} 19. Qg3 {[%emt 0:03:47][%cal Oa3a4]} Bxe5 {[%emt 0:03:33]} 20. Bxe5 {[%emt 0:02:47][%csl Ge5][%cal Rg3g7] [#]} Rf7 {[%emt 0:01:09]} ({Don't take} 20... Nxe5 21. Qxe5 Kh8 22. Bxd5 (22. Qxe6 Rc7 $14) 22... Bxd5 23. Nf4 $16) 21. Rac1 {[%emt 0:10:43]} a6 {[%emt 0:06:23]} 22. Rc2 {[%emt 0:04:58]} Qf8 {[%emt 0:04:57]} 23. Bxc4 {[%emt 0:05:28]} bxc4 {[%emt 0:01:00]} 24. Nf4 {[%emt 0:00:02]} Nxf4 {[%emt 0:00:30]} 25. Qxf4 {[%emt 0:00:07]} Bd5 {[%emt 0:04:52]} 26. Rc3 {[%emt 0:02:43]} Rd8 {[%emt 0:01:26]} 27. Rg3 {[%emt 0:00:19]} Rdd7 {[%emt 0:00:27]} 28. h4 {[%emt 0:00:07][%cal Bh3h4,Bh4h5,Bh5h6][%mdl 32]} Qc8 {[%emt 0:02:28]} 29. h5 {[%emt 0:05:12]} Kf8 {[%emt 0:01:03]} 30. Rc1 {[%emt 0:18:40][%cal Be1c1,Bc1c2,Bc2e2][%mdl 32] And now h6 would win.} Qb7 {[%emt 0:01:47]} 31. Qd2 {[%emt 0:00:02]} Ke8 {[%emt 0:01:15]} (31... Kg8 $11) 32. h6 {[%emt 0:03:01] aiming for b3.} g6 {[%emt 0:00:05]} 33. Rgc3 {[%emt 0:00:03]} Rd8 {[%emt 0:01:01]} 34. f3 {[%emt 0:01:39]} Qb5 {[%emt 0:00:51]} 35. R1c2 {[%emt 0:00:34]} Rb7 {[%emt 0:01:15]} 36. Qg5 {[%emt 0:00:28][%cal Ob2b3] Strongly threatening b3!} Qd7 {[%emt 0:01:06]} 37. Re2 {[%emt 0:01:00]} Rc8 {[%emt 0:00:49]} 38. Qf4 {[%emt 0:02:39]} Rc6 {[%emt 0:00:59]} 39. Qg5 {[%emt 0:01:53]} Qe7 {[%emt 0:01:41]} 40. Bf6 {[%emt 0:00:00]} Qd6 {[%emt 0:00:00]} 41. Rec2 {[%emt 0:03:17]} a5 {[%emt 0:09:11]} 42. Qd2 {[%emt 0:01:48]} Kf7 {[%emt 0:01:53]} 43. Be5 {[%emt 0:00:09]} Qd8 {[%emt 0:00:31]} 44. Bf4 {[%emt 0:00:37]} Rcb6 {[%emt 0:01:17]} 45. Qf2 {[%emt 0:00:20]} (45. Be3 $11 {should be considered.}) 45... Qf6 {[%emt 0:05:02]} (45... g5 $1 $15 46. Be5 Qf8) 46. Qd2 $11 {[%emt 0:01:13]} Qd8 {[%emt 0:05:38]} 47. Bg5 {[%emt 0:00:02]} Qb8 {[%emt 0:00:39][%cal Rb6b2]} 48. Bf4 $36 {[%emt 0:00:33][%mdl 2048] White is pushing.} Qd8 {[%emt 0:00:09]} 49. Bg3 {[%emt 0:00:07]} Qf6 {[%emt 0:01:42]} (49... g5 $5 {[%cal Rf5f4]}) 50. Be5 {[%emt 0:00:59] The position is equal.} Qh4 {[%emt 0:00:26]} 51. Qc1 {[%emt 0:02:50]} Rxb2 {[%emt 0:01:56]} 52. Rxb2 {[%emt 0:00:20]} Rxb2 {[%emt 0:00:05]} 53. Qxb2 {[%emt 0:00:20]} Qe1+ {Weighted Error Value: White=0.07 (flawless) /Black=0.06 (flawless)} 1/2-1/2

[Event "79th LOTTO Polish-ch 2022"]
[Site "Kruszwica"]
[Date "2022.05.12"]
[Round "2.2"]
[White "Tomczak, Jacek"]
[Black "Socko, Bartosz"]
[Result "0-1"]
[ECO "B11"]
[WhiteElo "2584"]
[BlackElo "2636"]
[Annotator "TA"]
[PlyCount "76"]
[EventDate "2022.05.10"]
[EventType "k.o."]
[EventCountry "POL"]
[SourceTitle "playchess.com"]
[Source "ChessBase"]
[SourceQuality "1"]
[TimeControl "40/5400+30:1800+30"]

{[%evp 10,76,8,14,29,6,26,0,9,16,18,6,12,16,35,37,31,-16,0,0,0,-9,23,21,31,29,32,16,48,7,27,10,13,19,29,16,10,20,32,-44,-47,-64,-60,-27,-4,-56,-66,-53,-15,-61,-53,-96,-100,-104,-117,-207,-197,-249,-212,-306,-261,-423,-439,-705,-663,-680,-627,-1370,-1304]} 1. e4 {[%emt 0:00:04]} c6 {[%emt 0:00:04]} 2. Nc3 {[%emt 0:00:08]} d5 {[%emt 0:00:07]} 3. Nf3 {[%emt 0:00:09]} Bg4 {[%emt 0:00:09]} 4. h3 {[%emt 0:00:17]} Bxf3 {[%emt 0:00:41]} 5. Qxf3 {[%emt 0:00:07]} e6 {[%emt 0:00:07]} 6. Be2 {[%emt 0:00:11]} Nf6 {[%emt 0:05:19] B11: Caro-Kann: Two Knights Variation.} 7. O-O {[%emt 0:00:26]} Be7 {[%emt 0:01:20]} 8. Rd1 {[%emt 0:00:15]} d4 {[%emt 0:00:04] The position is equal.} 9. Nb1 {[%emt 0:00:06]} O-O {[%emt 0:01:22]} 10. d3 {[%emt 0:02:50]} c5 {[%emt 0:02:24] [#]} 11. Qg3 $146 {[%emt 0:05:56]} ({Predecessor:} 11. h4 Nc6 12. Qh3 e5 13. c3 Rc8 14. Na3 Qd7 15. Qxd7 Nxd7 16. g3 Rfd8 17. Kg2 {1-0 (72) Grandelius,N (2651)-Shuvalova,P (2454) Chess.com INT 2020}) 11... Nc6 {[%emt 0:00:13]} 12. e5 {[%emt 0:03:39]} Ne8 {[%emt 0:00:17]} 13. c4 {[%emt 0:01:38]} (13. Nd2 $14) 13... f6 {[%emt 0:16:00]} 14. exf6 {[%emt 0:12:20]} Bd6 {[%emt 0:00:09]} 15. Bf4 {[%emt 0:14:46]} Bxf4 {[%emt 0:14:30]} (15... e5 $5 {[%cal Re5f4]} 16. Bg5 Nxf6 $11) 16. Qxf4 {[%emt 0:01:41]} gxf6 {[%emt 0:00:06]} 17. Nd2 {[%emt 0:02:37]} e5 {[%emt 0:02:48]} 18. Qh4 {[%emt 0:10:20]} Nd6 {[%emt 0:03:50]} 19. Rab1 {[%emt 0:10:24]} Kh8 {[%emt 0:03:17]} 20. a3 {[%emt 0:09:30]} Ne7 {[%emt 0:00:43]} 21. Bh5 {[%emt 0:02:00]} Qd7 {[%emt 0:06:19]} 22. Ne4 {[%emt 0:02:00]} Ndf5 {[%emt 0:05:18]} 23. Qg4 {[%emt 0:00:09]} ({Wrong is} 23. Nxc5 $2 Qc8 24. Qe4 Nd6 $19) (23. Nxf6 $2 Qe6 24. Qe4 Qxf6 $19) 23... Qc6 {[%emt 0:00:40]} 24. Kh2 {[%emt 0:07:15]} (24. Ng3 $14 Rg8 25. Qf3) 24... Ng7 $15 {[%emt 0:03:57] aiming for ...f5. Pair of Knights!} 25. Qe2 {[%emt 0:00:53]} f5 {[%emt 0:00:11]} 26. Ng3 {[%emt 0:00:21]} Qc7 {[%emt 0:03:38]} 27. Bf3 {[%emt 0:00:54]} (27. Kg1 $1 $11) 27... Rae8 {[%emt 0:01:34]} 28. b4 {[%emt 0:01:39]} cxb4 {[%emt 0:00:13]} 29. Rxb4 {[%emt 0:00:46]} (29. axb4 $11 {is more appropriate.} Ng6 30. Ra1) 29... b6 $1 {[%emt 0:02:00]} 30. Rb5 {[%emt 0:01:37] [#]} Ng6 {[%emt 0:01:01]} 31. Re1 {[%emt 0:01:42]} Ne6 {[%emt 0:02:01][%cal Bg7e6,Be6c5,Bc5d3][%mdl 32]} 32. Qd2 {[%emt 0:03:50] [#]} (32. Bh5 $17) 32... Nc5 $1 $19 {[%emt 0:02:07]} 33. Bh5 {[%emt 0:00:38]} (33. Rd1 {is a better defense.}) 33... Re6 {[%emt 0:02:09]} 34. Qh6 {[%emt 0:02:06]} (34. Bxg6 $142 Rxg6 35. Rg1) 34... Qe7 {[%emt 0:09:59]} 35. Bxg6 $2 {[%emt 0:03:20]} (35. Qd2 {was worth a try.}) 35... Rxg6 {[%emt 0:00:06] Black is clearly winning.} ({Weaker is} 35... Nxd3 36. Qd2 Nxe1 37. Bxf5 $16) 36. Rxe5 {[%emt 0:00:16]} (36. Qh5 $142 Nxd3 37. Rf1) 36... Qd6 {[%emt 0:00:09]} ({Less strong is} 36... Rxh6 37. Rxe7 f4 38. Ne4 $16) 37. Qf4 {[%emt 0:01:38][%cal Ob5c5]} Nxd3 {[%emt 0:00:06]} 38. Qxf5 {[%emt 0:00:31]} Rxf5 {[%emt 0:00:45] Weighted Error Value: White=0.42/Black=0.09 (flawless)} 0-1

[Event "79th LOTTO Polish-ch 2022"]
[Site "Kruszwica"]
[Date "2022.05.12"]
[Round "2.2"]
[White "Gumularz, Szymon"]
[Black "Warakomski, Tomasz"]
[Result "1/2-1/2"]
[ECO "D37"]
[WhiteElo "2513"]
[BlackElo "2534"]
[Annotator "TA"]
[PlyCount "83"]
[EventDate "2022.05.10"]
[EventType "k.o."]
[EventCountry "POL"]
[SourceTitle "playchess.com"]
[Source "ChessBase"]
[SourceQuality "1"]
[TimeControl "40/5400+30:1800+30"]

{[%evp 9,83,8,44,37,37,37,43,30,34,44,61,18,18,21,22,22,16,24,29,31,34,29,33,33,23,12,53,0,32,45,65,53,110,29,27,25,28,16,29,0,0,0,12,12,12,12,13,14,32,24,39,26,64,63,88,42,45,23,22,7,8,8,8,8,0,0,0,0,0,0,0,0,0,0,0,0]} 1. d4 {[%emt 0:00:03]} Nf6 {[%emt 0:00:15]} 2. Nf3 {[%emt 0:00:31]} d5 {[%emt 0:01:31]} 3. c4 {[%emt 0:00:06]} e6 {[%emt 0:00:04]} 4. Nc3 {[%emt 0:00:13]} dxc4 {[%emt 0:01:58]} 5. e4 {[%emt 0:00:16][%cal Be2e4,Be4e5][%mdl 32]} b5 {[%emt 0:00:42]} (5... Bb4 $5 {[%cal Rf6e4]}) 6. e5 {[%emt 0:00:42] D24: Queen's Gambit Accepted: 3 Nf3 Nf6 4 Nc3.} Nd5 {[%emt 0:00:07]} 7. Nxb5 {[%emt 0:00:19]} Nb6 {[%emt 0:00:09]} 8. Be2 {[%emt 0:00:32] White is slightly better.} Be7 {[%emt 0:02:05]} 9. Be3 {[%emt 0:00:21]} Nc6 {[%emt 0:01:11][%cal Bb8c6,Bc6a5,Ba5b3,Bb3d2][%mdl 32]} 10. a3 {[%emt 0:04:50] White is more active.} O-O {[%emt 0:03:06]} 11. Qc2 {[%emt 0:00:19]} Rb8 {[%emt 0:02:58]} 12. Nc3 {[%emt 0:07:32]} Na5 {[%emt 0:10:04]} 13. Rd1 {[%emt 0:12:25]} Bb7 {[%emt 0:01:23]} 14. h4 $1 {[%emt 0:06:08] [#]} Nd5 $146 {[%emt 0:11:51]} ({Predecessor:} 14... f5 15. exf6 Bxf6 16. Ng5 Bxg5 17. hxg5 g6 18. Ne4 Bxe4 19. Qxe4 Qd5 20. Qh4 Rf7 {1-0 (28) Rustemov,A (2525)-Farmani Anosheh,A (2345) Chess.com INT 2022}) 15. Bd2 {[%emt 0:23:05]} Nb3 {[%emt 0:16:17]} 16. Bxc4 {[%emt 0:04:33]} ({Of course not} 16. Nxd5 exd5 17. Bc3 (17. Ng5 g6 $15) 17... h6 $15) 16... Nxd2 {[%emt 0:00:06]} 17. Qxd2 {[%emt 0:01:53]} ({Stronger than} 17. Kxd2 Nb6 18. Bb3 Bxf3 19. gxf3 Qxd4+ 20. Kc1 Qxe5 $19) 17... Nb6 {[%emt 0:00:28]} 18. Ba2 {[%emt 0:01:44]} (18. Bd3 $14) 18... Bxf3 {[%emt 0:01:58]} 19. gxf3 {[%emt 0:00:07]} Qd7 {[%emt 0:11:26]} 20. Qc2 {[%emt 0:15:44] Against Na4} Qc6 {[%emt 0:11:21] [#]} ({Better is} 20... Nd5 $14) 21. Qe4 {[%emt 0:02:47]} (21. Rh3 $1 $16) 21... Qxe4+ $11 {[%emt 0:00:56]} 22. fxe4 {[%emt 0:00:06]} Nd7 {[%emt 0:00:06]} 23. Na4 {[%emt 0:08:59]} c5 {[%emt 0:00:40]} 24. f4 {[%emt 0:01:02] Strongly threatening d5.} (24. d5 $5 {[%cal Rd5e6]} Nxe5 25. f4 Nf3+ 26. Kf2 $11) 24... cxd4 {[%emt 0:01:07]} 25. Rxd4 {[%emt 0:00:15]} Nc5 {[%emt 0:00:24] [#] aiming for ...Nxa4.} 26. Rh2 $1 {[%emt 0:00:27]} Rfc8 {[%emt 0:02:17] White must now prevent ...Nxa4.} 27. Nxc5 {[%emt 0:02:40]} Bxc5 {[%emt 0:00:58]} 28. Rd3 {[%emt 0:00:18]} Rd8 {[%emt 0:04:41]} 29. Rxd8+ {[%emt 0:00:46]} Rxd8 $14 {[%emt 0:00:04][%mdl 4096] Endgame KRB-KRB} 30. Rc2 {[%emt 0:00:23]} Be3 {[%emt 0:02:49]} 31. f5 {[%emt 0:00:16]} Re8 {[%emt 0:01:01]} 32. fxe6 {[%emt 0:02:22]} ({White should try} 32. Rc6 $16) 32... fxe6 {[%emt 0:00:04]} 33. Rc6 {[%emt 0:02:13]} (33. Ke2 $5 {[%cal Re2e3]} Bd4 34. Rc7 $14) 33... Kf7 {[%emt 0:00:19]} 34. Ra6 {[%emt 0:00:17] The position is equal.} Re7 {[%emt 0:01:22]} 35. Ke2 {[%emt 0:01:48]} Bd4 {[%emt 0:00:33]} 36. b4 {[%emt 0:00:07]} Bxe5 {[%emt 0:00:06]} 37. Kf3 {[%emt 0:00:43]} h5 {[%emt 0:00:52]} 38. b5 {[%emt 0:01:19]} Kf6 {[%emt 0:00:44]} 39. a4 {[%emt 0:00:24]} Bd4 {[%emt 0:04:07]} 40. Kf4 {[%emt 0:00:00]} Be5+ {[%emt 0:00:00]} 41. Kf3 {[%emt 0:07:15]} Bd4 {[%emt 0:01:00]} 42. Kf4 {[%emt 0:01:20] Weighted Error Value: White=0.09 (flawless) /Black=0.09 (flawless)} 1/2-1/2

[Event "79th LOTTO Polish-ch 2022"]
[Site "Kruszwica"]
[Date "2022.05.12"]
[Round "2.2"]
[White "Nasuta, Grzegorz"]
[Black "Kosakowski, Jakub"]
[Result "1-0"]
[ECO "C50"]
[WhiteElo "2511"]
[BlackElo "2435"]
[Annotator "TA"]
[PlyCount "77"]
[EventDate "2022.05.10"]
[EventType "k.o."]
[EventCountry "POL"]
[SourceTitle "playchess.com"]
[Source "ChessBase"]
[SourceQuality "1"]
[TimeControl "40/5400+30:1800+30"]

{[%evp 10,77,20,20,31,1,14,12,7,0,16,-2,6,0,0,0,0,0,0,0,14,22,13,14,22,15,22,18,26,4,36,41,57,58,72,95,195,157,150,162,295,210,210,215,213,213,294,283,287,292,275,289,276,286,290,275,266,277,277,269,270,271,267,270,267,241,425,289,337,304]} 1. e4 {[%emt 0:00:03]} e5 {[%emt 0:00:38]} 2. Nf3 {[%emt 0:00:15]} Nc6 {[%emt 0:00:12]} 3. Bc4 {[%emt 0:00:15]} Bc5 {[%emt 0:00:22]} 4. O-O {[%emt 0:00:21]} Nf6 {[%emt 0:00:20]} 5. d3 {[%emt 0:00:07]} d6 {[%emt 0:00:53]} 6. c3 {[%emt 0:00:20]} a5 {[%emt 0:00:42] 6...a5 is a critical line. C54: Giuoco Piano: 4 c3 Nf6, main lines with 5 d4 and 5 d3.} 7. Re1 {[%emt 0:03:11]} (7. Bg5 $5 {[%cal Rd3d4]}) 7... O-O {[%emt 0:00:17]} 8. h3 {[%emt 0:00:11]} h6 {[%emt 0:00:35] The position is equal.} 9. Bb3 {[%emt 0:09:59]} Re8 {[%emt 0:04:41]} 10. d4 {[%emt 0:02:00]} Bb6 {[%emt 0:01:05]} 11. Bc2 {[%emt 0:00:36]} exd4 {[%emt 0:05:16]} 12. cxd4 {[%emt 0:00:14]} Nb4 $1 {[%emt 0:00:12]} 13. Nc3 {[%emt 0:00:06]} Nxc2 {[%emt 0:00:16]} 14. Qxc2 {[%emt 0:00:05]} d5 {[%emt 0:12:51]} 15. e5 {[%emt 0:00:24]} Ne4 {[%emt 0:00:14]} 16. Be3 {[%emt 0:04:17]} ({Of course not} 16. Nxe4 Bf5 $15) 16... Bf5 {[%emt 0:06:27]} 17. Nd2 {[%emt 0:00:29] [#]} Qd7 $146 {[%emt 0:09:59][%cal Oe4f2]} ({Predecessor:} 17... Bg6 18. Ndxe4 dxe4 19. Rad1 Ra6 20. Qb3 Qd7 21. Na4 Bf5 22. Rd2 Qe7 23. Rc1 Rd8 {½-½ (38) Haria,R (2490)-Adams,M (2700) London 2021}) 18. Ndxe4 {[%emt 0:18:15]} dxe4 {[%emt 0:00:29]} 19. Nxe4 {[%emt 0:15:27][%cal Oe4c5]} Bg6 {[%emt 0:03:11]} 20. Rad1 {[%emt 0:07:53]} Qd5 {[%emt 0:05:22][%csl LRa2,LRe4]} 21. f3 {[%emt 0:02:21]} Qxa2 {[%emt 0:03:21] [#]} 22. d5 $1 {[%emt 0:10:36][%cal Oe5e6] White is much more active.} Rxe5 {[%emt 0:06:22]} (22... a4 $16 {keeps fighting.}) 23. Bxb6 $18 {[%emt 0:00:07][%mdl 64] Overworked Piece} cxb6 {[%emt 0:00:04]} 24. d6 {[%emt 0:07:19]} Rc5 {[%emt 0:22:13]} (24... Bxe4 $142 25. Rxe4 Rxe4 26. Qxe4 Qb3) 25. Qd2 {[%emt 0:06:52]} Rcc8 {[%emt 0:00:55]} 26. Nc3 {[%emt 0:04:31][%cal Be4c3,Bc3d5,Bd5b6][%mdl 32]} Qc4 {[%emt 0:00:40]} 27. Nd5 {[%emt 0:02:33]} Rd8 {[%emt 0:02:06]} 28. Nxb6 {[%emt 0:03:43]} Qc5+ {[%emt 0:00:14]} 29. Qe3 {[%emt 0:00:01]} Qxe3+ {[%emt 0:01:47]} 30. Rxe3 {[%emt 0:00:02]} Ra6 {[%emt 0:00:07] [#]} 31. d7 $1 {[%emt 0:02:09] Hoping for Re8+.} Kf8 {[%emt 0:00:10] [#] Prevents Re8+.} 32. Rc1 $1 {[%emt 0:00:55] White wants to mate with Rc8.} Bf5 {[%emt 0:00:12]} (32... Rxb6 $2 33. Rc8 Re6 34. Rxe6 fxe6 35. Rxd8+ Ke7 36. Rg8 Kxd7 37. Rxg7+ Kd6 38. Rxg6 $18) 33. Rc8 $1 {[%emt 0:00:14]} Rxc8 {[%emt 0:00:05]} 34. dxc8=Q+ {[%emt 0:00:12]} ({Resist} 34. dxc8=R+ Bxc8 35. Nxc8 Rc6 $18) 34... Bxc8 {[%emt 0:00:04]} 35. Nxc8 {[%emt 0:00:05] KRN-KR} Rc6 {[%emt 0:00:03] [#]} 36. Na7 {[%emt 0:01:04]} Rb6 {[%emt 0:01:02]} 37. b3 {[%emt 0:00:57]} Re6 $2 {[%emt 0:01:09]} (37... g6 38. Kf2 f5) 38. Kf2 {[%emt 0:00:38] aiming for Rxe6.} Ke7 {[%emt 0:00:11]} 39. Nb5 {[%emt 0:00:08] Weighted Error Value: White=0.11 (very precise) /Black=0.22 (precise)} 1-0

[Event "79th LOTTO Polish-ch 2022"]
[Site "Kruszwica"]
[Date "2022.05.12"]
[Round "2.2"]
[White "Licznerski, Lukasz"]
[Black "Sabuk, Piotr"]
[Result "1-0"]
[ECO "B13"]
[WhiteElo "2439"]
[BlackElo "2420"]
[Annotator "TA"]
[PlyCount "89"]
[EventDate "2022.05.10"]
[EventType "k.o."]
[EventCountry "POL"]
[SourceTitle "playchess.com"]
[Source "ChessBase"]
[SourceQuality "1"]
[TimeControl "40/5400+30:1800+30"]

{[%evp 12,89,17,8,14,1,0,3,4,6,7,0,0,0,0,0,0,-20,0,-21,-11,-22,-22,-38,-28,-30,-27,-59,-47,-129,-125,-125,-20,-6,-8,-10,-30,-89,-84,-118,-88,-116,-102,-119,-133,-112,-70,-56,-6,-10,0,0,0,0,0,0,0,0,0,0,0,0,14,14,241,241,241,241,241,241,485,449,29969,29971,29968,29971,29967,29967,29984,29985]} 1. e4 {[%emt 0:00:02]} c6 {[%emt 0:00:06]} 2. d4 {[%emt 0:02:59]} d5 {[%emt 0:00:07]} 3. exd5 {[%emt 0:00:29]} cxd5 {[%emt 0:00:07]} 4. Bd3 {[%emt 0:00:05]} Nc6 {[%emt 0:00:34]} 5. c3 {[%emt 0:00:02]} Nf6 {[%emt 0:01:18]} 6. h3 {[%emt 0:00:03]} g6 {[%emt 0:01:06]} 7. Bf4 {[%emt 0:01:01]} Bf5 {[%emt 0:00:36] B13: Caro-Kann: Exchange Variation and Panov-Botvinnik Attack.} 8. Be2 {[%emt 0:04:17]} e6 {[%emt 0:03:38]} 9. Nd2 {[%emt 0:02:09]} h5 {[%emt 0:01:20] The position is equal.} 10. Ngf3 {[%emt 0:10:21]} Bd6 {[%emt 0:00:56]} 11. Bg5 {[%emt 0:00:39]} Be7 {[%emt 0:03:52] [#]} 12. Nh4 $146 {[%emt 0:08:08]} ({Predecessor:} 12. O-O Nd7 13. Bxe7 Qxe7 14. c4 Nf6 15. cxd5 Nxd5 16. Bb5 Rc8 17. Ne5 Ndb4 18. Rc1 {1-0 (45) Ali,M (2399)-Gholami,A (2513) Tornelo INT 2021}) 12... Ne4 {[%emt 0:05:33]} 13. Bxe7 {[%emt 0:02:30]} Qxe7 {[%emt 0:02:37]} 14. Nxf5 {[%emt 0:09:42]} exf5 {[%emt 0:01:34]} 15. h4 {[%emt 0:10:04]} Kf8 {[%emt 0:10:32]} 16. Nxe4 {[%emt 0:08:50]} fxe4 {[%emt 0:02:47]} (16... Qxe4 17. O-O $11) 17. Qd2 {[%emt 0:00:01]} Kg7 {[%emt 0:02:18]} 18. O-O-O {[%emt 0:02:26]} Rab8 {[%emt 0:09:37]} 19. Kb1 {[%emt 0:11:54]} b5 {[%emt 0:01:53]} 20. b4 {[%emt 0:04:11]} (20. g3 $15) 20... a5 $17 {[%emt 0:02:54][%cal Ra5b4]} 21. a3 {[%emt 0:00:02]} Na7 {[%emt 0:02:56]} ({Black should try} 21... Qa7 $17 {aiming for ...axb4.} 22. Kb2 Qe7) 22. Qg5 $11 {[%emt 0:04:31]} Qxg5 {[%emt 0:01:36]} 23. hxg5 {[%emt 0:01:38]} Nc8 {[%emt 0:02:45]} 24. Rh4 {[%emt 0:04:11]} (24. bxa5 $11 {remains equal.} Ra8 25. Bxb5) 24... Nd6 $17 {[%emt 0:03:09]} 25. Rf4 {[%emt 0:00:35]} Kf8 {[%emt 0:08:27]} 26. Kb2 {[%emt 0:05:35]} f5 {[%emt 0:03:31]} 27. bxa5 {[%emt 0:01:50]} Ra8 {[%emt 0:03:14]} (27... Ke7 {feels hotter.} 28. Kb3 Nc4 29. Kb4 Kd6) 28. a4 {[%emt 0:01:38]} bxa4 {[%emt 0:03:00]} 29. a6 {[%emt 0:00:10]} Ke7 {[%emt 0:00:57]} (29... Rb8+ $15 30. Kc2 (30. Ka3 Kf7 $17) 30... a3) 30. Ra1 $1 $11 {[%emt 0:01:01]} Rhb8+ {[%emt 0:05:15]} 31. Kc2 {[%emt 0:00:08]} Nc4 {[%emt 0:00:43]} 32. Bxc4 {[%emt 0:00:06]} dxc4 {[%emt 0:00:03]} 33. Rxa4 {[%emt 0:00:19][%mdl 4096] Endgame KRR-KRR} Rb6 {[%emt 0:00:10]} 34. a7 {[%emt 0:04:32]} (34. Rxc4 Raxa6 35. Rb4 Rxb4 36. cxb4 Kd6 $17) 34... Rb7 {[%emt 0:04:35]} 35. f3 $1 {[%emt 0:00:02]} (35. Rxc4 Raxa7 36. Rb4 Rxb4 37. cxb4 Kd6 $17) 35... e3 {[%emt 0:00:31][%cal Be4e3,Be3e2][%mdl 32]} 36. g4 {[%emt 0:00:01]} e2 {[%emt 0:06:38]} (36... Raxa7 37. Rxa7 Rxa7 38. gxf5 gxf5 39. Kd1 (39. Rxf5 h4 $17)) 37. Kd2 {[%emt 0:00:37] [#] Hoping for gxh5.} Rb2+ $2 {[%emt 0:03:46] Black cannot hold the game after this.} (37... fxg4 $11 {and Black stays safe.} 38. fxg4 h4) 38. Ke1 $18 {[%emt 0:00:02]} hxg4 {[%emt 0:00:15]} 39. fxg4 {[%emt 0:00:15]} fxg4 {[%emt 0:03:58] Strongly threatening ...g3.} 40. Re4+ {[%emt 0:00:00]} ({Don't blunder} 40. Rxc4 $2 Rxa7 41. Re4+ Kd6 42. Rxe2 Ra1+ 43. Kf2 g3+ 44. Kxg3 Rxe2 $19) 40... Kd6 $2 {[%emt 0:00:00] [#]} (40... Kd7 41. Rxe2 (41. Rxg4 Rf8 $14) 41... Rb3) 41. Rxe2 {[%emt 0:04:28]} Rb7 {[%emt 0:05:45]} (41... Rb5 $18 42. Ra6+ Kd7) 42. Ra6+ {[%emt 0:05:13] White mates.} Kd7 {[%emt 0:02:34]} 43. Rh2 {[%emt 0:00:46]} Rb1+ {[%emt 0:17:55]} 44. Kf2 {[%emt 0:01:49]} Kc8 {[%emt 0:02:48]} 45. Rh7 {[%emt 0:00:28] Weighted Error Value: White=0.10 (very precise) /Black=0.47} 1-0